[Event "32nd NATO Chess Championship"]
[Site "Tartu, Estonia"]
[Date "2022.06.28"]
[Round "2.31"]
[White "Korge, Kersti"]
[Black "Stuhr, Finn"]
[Result "0-1"]
[TimeControl "90 min + 30 sec increment from move one"]
[WhiteFideId "4502310"]
[BlackFideId "1400789"]
[WhiteElo "1864"]
[BlackElo "1686"]

1. b4 {[%clk 01:30:58]} {[%emt 00:00:01]} b6 {[%clk 01:27:49]} {[%emt
00:03:11]} 2. Bb2 {[%clk 01:31:13]} {[%emt 00:00:14]} Bb7 {[%clk 01:28:08]}
{[%emt 00:00:11]} 3. e3 {[%clk 01:31:25]} {[%emt 00:00:19]} e6 {[%clk
01:28:26]} {[%emt 00:00:11]} 4. b5 {[%clk 01:31:40]} {[%emt 00:00:15]} d6
{[%clk 01:28:31]} {[%emt 00:00:24]} 5. Nf3 {[%clk 01:31:56]} {[%emt 00:00:15]}
Nd7 {[%clk 01:28:15]} {[%emt 00:00:46]} 6. Be2 {[%clk 01:32:15]} {[%emt
00:00:11]} Ngf6 {[%clk 01:28:03]} {[%emt 00:00:42]} 7. O-O {[%clk 01:32:27]}
{[%emt 00:00:18]} g6 {[%clk 01:28:15]} {[%emt 00:00:18]} 8. c4 {[%clk
01:32:01]} {[%emt 00:00:56]} Bg7 {[%clk 01:28:19]} {[%emt 00:00:26]} 9. d4
{[%clk 01:31:18]} {[%emt 00:01:13]} O-O {[%clk 01:28:20]} {[%emt 00:00:29]} 10.
Nc3 {[%clk 01:30:31]} {[%emt 00:01:17]} Re8 {[%clk 01:25:28]} {[%emt 00:03:21]}
11. Qc2 {[%clk 01:28:24]} {[%emt 00:02:37]} e5 {[%clk 01:20:52]} {[%emt
00:05:06]} 12. d5 {[%clk 01:25:30]} {[%emt 00:03:25]} Nc5 {[%clk 01:20:37]}
{[%emt 00:00:45]} 13. Nd2 {[%clk 01:24:45]} {[%emt 00:01:15]} Bc8 {[%clk
01:18:17]} {[%emt 00:02:50]} 14. e4 {[%clk 01:17:26]} {[%emt 00:07:49]} Bh6
{[%clk 01:17:18]} {[%emt 00:01:29]} 15. Nb3 {[%clk 01:16:24]} {[%emt 00:01:33]}
Nb7 {[%clk 01:14:32]} {[%emt 00:03:16]} 16. Bc1 {[%clk 01:16:04]} {[%emt
00:00:50]} Bxc1 {[%clk 01:11:35]} {[%emt 00:03:27]} 17. Qxc1 {[%clk 01:15:33]}
{[%emt 00:01:01]} Bg4 {[%clk 01:09:58]} {[%emt 00:02:06]} 18. Bxg4 {[%clk
01:13:23]} {[%emt 00:02:40]} Nxg4 {[%clk 01:10:16]} {[%emt 00:00:12]} 19. h3
{[%clk 01:13:39]} {[%emt 00:00:14]} Nf6 {[%clk 01:10:23]} {[%emt 00:00:23]} 20.
Qe3 {[%clk 01:11:41]} {[%emt 00:02:29]} Nh5 {[%clk 01:08:39]} {[%emt 00:02:13]}
21. g3 {[%clk 01:11:14]} {[%emt 00:00:57]} Qd7 {[%clk 01:08:13]} {[%emt
00:00:56]} 22. Kg2 {[%clk 01:10:57]} {[%emt 00:00:46]} f5 {[%clk 01:01:57]}
{[%emt 00:06:46]} 23. Qg5 {[%clk 01:10:23]} {[%emt 00:01:05]} Rf8 {[%clk
00:58:03]} {[%emt 00:04:24]} 24. exf5 {[%clk 01:05:55]} {[%emt 00:04:58]} Rxf5
{[%clk 00:57:56]} {[%emt 00:00:37]} 25. Qe3 {[%clk 01:02:59]} {[%emt 00:03:26]}
Raf8 {[%clk 00:57:31]} {[%emt 00:00:55]} 26. Ne4 {[%clk 01:01:41]} {[%emt
00:01:49]} Rf3 {[%clk 00:51:35]} {[%emt 00:06:25]} 27. Qh6 {[%clk 00:59:06]}
{[%emt 00:03:05]} R3f5 {[%clk 00:48:05]} {[%emt 00:04:01]} 28. g4 {[%clk
00:53:11]} {[%emt 00:06:25]} Nf4+ {[%clk 00:47:36]} {[%emt 00:00:58]} 29. Kh2
{[%clk 00:53:32]} {[%emt 00:00:10]} Rh5 {[%clk 00:47:33]} {[%emt 00:00:32]} 30.
Qxf4 {[%clk 00:52:44]} {[%emt 00:01:19]} Rxf4 {[%clk 00:46:55]} {[%emt
00:01:09]} 31. f3 {[%clk 00:51:28]} {[%emt 00:01:46]} Rxe4 {[%emt 00:00:26]} 32.
fxe4 {[%emt 00:00:10]} Qxg4 {[%clk 00:46:38]} {[%emt 00:00:10]} 0-1

[Event "32nd NATO Chess Championship"]
[Site "Tartu, Estonia"]
[Date "2022.06.28"]
[Round "2.32"]
[White "Coulon, Dominic"]
[Black "Giedraitis, Mingaudas"]
[Result "0-1"]
[TimeControl "90 min + 30 sec increment from move one"]
[WhiteFideId "2621932"]
[BlackFideId "12808806"]
[WhiteElo "1701"]
[BlackElo "1846"]

1. d4 d5 2. Nf3 Nf6 3. Bg5 c6 4. Nbd2 Qb6 5. Bxf6 exf6 6. Rb1 Bf5 7. e3 Bd6 8.
Nh4 Bd7 9. Bd3 g6 10. c3 O-O 11. O-O f5 12. f4 Bc8 13. Rf3 Qd8 14. Rh3 f6 15.
Qc2 Be6 16. Rg3 Kf7 17. Nxf5 gxf5 18. Bxf5 Qd7 19. Bxh7 f5 20. Nf3 Ke8 21. Ng5
Be7 22. Nxe6 Qxe6 23. Bg6+ Kd8 24. Bh5 Nd7 25. Bf3 Qxe3+ 26. Kh1 Qxf4 27. Re1
{[%clk 01:30:56]} Nf6 {[%clk 01:30:49]} 0-1

[Event "32nd NATO Chess Championship"]
[Site "Tartu, Estonia"]
[Date "2022.06.28"]
[Round "2.34"]
[White "Adolfssen, Rico"]
[Black "Ross, David C"]
[Result "1-0"]
[TimeControl "90 min + 30 sec increment from move one"]
[WhiteFideId "1400371"]
[BlackFideId "417572"]
[WhiteElo "1837"]
[BlackElo "1677"]

1. e4 {[%clk 01:30:55]} {[%emt 00:00:04]} e5 {[%clk 01:30:32]} {[%emt
00:00:28]} 2. f4 {[%clk 01:31:15]} {[%emt 00:00:11]} exf4 {[%clk 01:30:21]}
{[%emt 00:00:40]} 3. Nf3 {[%clk 01:31:26]} {[%emt 00:00:20]} g5 {[%clk
01:30:22]} {[%emt 00:00:29]} 4. h4 {[%clk 01:29:08]} {[%emt 00:02:48]} g4
{[%clk 01:30:02]} {[%emt 00:00:50]} 5. Ne5 {[%clk 01:28:24]} {[%emt 00:01:14]}
h5 {[%clk 01:29:09]} {[%emt 00:01:22]} 6. Bc4 {[%clk 01:27:48]} {[%emt
00:01:07]} Nh6 {[%clk 01:28:25]} {[%emt 00:01:13]} 7. d4 {[%clk 01:25:21]}
{[%emt 00:02:58]} d6 {[%clk 01:25:15]} {[%emt 00:03:40]} 8. Nd3 {[%clk
01:23:25]} {[%emt 00:02:26]} Nc6 {[%clk 01:23:55]} {[%emt 00:01:50]} 9. Nxf4
{[%clk 01:21:10]} {[%emt 00:02:45]} Qe7 {[%clk 01:21:57]} {[%emt 00:02:27]} 10.
Nc3 {[%clk 01:16:38]} {[%emt 00:05:01]} Bd7 {[%clk 01:14:05]} {[%emt 00:08:23]}
11. Nfd5 {[%clk 01:15:18]} {[%emt 00:01:51]} Qd8 {[%clk 01:13:04]} {[%emt
00:01:31]} 12. Bg5 {[%clk 01:09:39]} {[%emt 00:06:08]} Ne7 {[%clk 01:10:50]}
{[%emt 00:02:44]} 13. Nf6# {[%clk 01:09:13]} {[%emt 00:00:56]} 1-0

[Event "32nd NATO Chess Championship"]
[Site "Tartu, Estonia"]
[Date "2022.06.28"]
[Round "2.35"]
[White "O`byrne, Daniel"]
[Black "Kocur, Marc"]
[Result "1-0"]
[TimeControl "90 min + 30 sec increment from move one"]
[WhiteFideId "440825"]
[BlackFideId "205036"]
[WhiteElo "1664"]
[BlackElo "1835"]

1. e4 {[%clk 01:30:56]} {[%emt 00:00:03]} Nc6 {[%clk 01:30:47]} {[%emt
00:00:13]} 2. d4 {[%clk 01:31:00]} {[%emt 00:00:27]} d5 {[%clk 01:31:03]}
{[%emt 00:00:14]} 3. e5 {[%clk 01:31:15]} {[%emt 00:00:15]} Bf5 {[%clk
01:31:18]} {[%emt 00:00:13]} 4. c3 {[%clk 01:30:13]} {[%emt 00:01:33]} e6
{[%clk 01:27:27]} {[%emt 00:04:21]} 5. Ne2 {[%clk 01:28:49]} {[%emt 00:01:53]}
f6 {[%clk 01:22:38]} {[%emt 00:05:19]} 6. f4 {[%clk 01:28:18]} {[%emt
00:01:02]} Nh6 {[%clk 01:09:55]} {[%emt 00:13:13]} 7. Ng3 {[%clk 01:24:20]}
{[%emt 00:04:29]} Bxb1 {[%clk 01:04:23]} {[%emt 00:06:01]} 8. Rxb1 {[%clk
01:24:36]} {[%emt 00:00:14]} f5 {[%clk 01:04:42]} {[%emt 00:00:11]} 9. Qb3
{[%clk 01:24:32]} {[%emt 00:00:34]} Na5 {[%clk 00:59:47]} {[%emt 00:05:23]} 10.
Qa4+ {[%clk 01:24:17]} {[%emt 00:00:47]} c6 {[%clk 00:57:48]} {[%emt 00:02:29]}
11. b4 {[%clk 01:24:06]} {[%emt 00:00:42]} Nc4 {[%clk 00:58:10]} {[%emt
00:00:07]} 12. b5 {[%clk 01:23:09]} {[%emt 00:01:27]} Qa5 {[%clk 00:53:58]}
{[%emt 00:04:39]} 13. Qxa5 {[%clk 01:22:00]} {[%emt 00:01:42]} Nxa5 {[%clk
00:54:23]} {[%emt 00:00:06]} 14. bxc6 {[%clk 01:21:30]} {[%emt 00:01:00]} bxc6
{[%clk 00:54:47]} {[%emt 00:00:05]} 15. Nh5 {[%clk 01:20:26]} {[%emt 00:01:35]}
Kf7 {[%clk 00:53:38]} {[%emt 00:01:37]} 16. Bd2 {[%clk 01:18:50]} {[%emt
00:02:06]} Be7 {[%clk 00:53:01]} {[%emt 00:01:08]} 17. Bd3 {[%clk 01:18:05]}
{[%emt 00:01:16]} Rhb8 {[%clk 00:48:03]} {[%emt 00:05:26]} 18. O-O {[%clk
01:18:19]} {[%emt 00:00:17]} c5 {[%clk 00:43:24]} {[%emt 00:05:08]} 19. h3
{[%clk 01:16:19]} {[%emt 00:02:30]} Ng8 {[%clk 00:37:35]} {[%emt 00:06:19]} 20.
Ng3 {[%clk 01:11:51]} {[%emt 00:04:59]} g6 {[%clk 00:35:49]} {[%emt 00:02:15]}
21. Ne2 {[%clk 01:11:37]} {[%emt 00:00:45]} c4 {[%clk 00:35:07]} {[%emt
00:01:12]} 22. Bc2 {[%clk 01:11:50]} {[%emt 00:00:17]} Ba3 {[%clk 00:34:30]}
{[%emt 00:01:07]} 23. Rxb8 {[%clk 01:08:12]} {[%emt 00:04:09]} Rxb8 {[%clk
00:34:52]} {[%emt 00:00:07]} 24. Rb1 {[%clk 01:08:33]} {[%emt 00:00:08]} Rb6
{[%clk 00:32:59]} {[%emt 00:02:23]} 25. Bc1 {[%clk 01:03:19]} {[%emt 00:05:45]}
Bxc1 {[%clk 00:30:52]} {[%emt 00:02:37]} 26. Nxc1 {[%clk 01:03:25]} {[%emt
00:00:24]} h6 {[%clk 00:30:56]} {[%emt 00:00:26]} 27. Kf2 {[%clk 01:00:24]}
{[%emt 00:03:31]} Ne7 {[%clk 00:30:47]} {[%emt 00:00:39]} 28. Rxb6 {[%clk
00:58:50]} {[%emt 00:02:05]} axb6 {[%clk 00:31:13]} {[%emt 00:00:04]} 29. Ba4
{[%clk 00:59:01]} {[%emt 00:00:18]} Nc8 {[%clk 00:28:44]} {[%emt 00:02:59]} 30.
Ke2 {[%clk 00:51:23]} {[%emt 00:08:08]} Na7 {[%clk 00:28:50]} {[%emt 00:00:23]}
31. Bc2 {[%clk 00:51:20]} {[%emt 00:00:33]} Nb5 {[%clk 00:28:20]} {[%emt
00:01:01]} 32. Kd2 {[%clk 00:51:09]} {[%emt 00:00:40]} Na3 {[%clk 00:27:54]}
{[%emt 00:00:57]} 33. Ne2 {[%clk 00:50:41]} {[%emt 00:00:58]} b5 {[%clk
00:27:30]} {[%emt 00:00:55]} 34. Kc1 {[%clk 00:50:48]} {[%emt 00:00:23]} Nc6
{[%clk 00:27:22]} {[%emt 00:00:37]} 35. Bd1 {[%clk 00:48:52]} {[%emt 00:02:26]}
b4 {[%clk 00:27:23]} {[%emt 00:00:30]} 36. Ba4 {[%clk 00:48:44]} {[%emt
00:00:37]} Na7 {[%clk 00:25:22]} {[%emt 00:02:31]} 37. cxb4 {[%clk 00:48:56]}
{[%emt 00:00:18]} N3b5 {[%clk 00:22:44]} {[%emt 00:03:07]} 38. Bxb5 {[%clk
00:48:33]} {[%emt 00:00:53]} Nxb5 {[%clk 00:23:11]} {[%emt 00:00:04]} 39. a4
{[%clk 00:48:50]} {[%emt 00:00:13]} Nc7 {[%clk 00:23:00]} {[%emt 00:00:41]} 40.
Nc3 {[%clk 00:48:51]} {[%emt 00:00:29]} g5 {[%clk 00:22:53]} {[%emt 00:00:37]}
41. g3 {[%clk 00:49:02]} {[%emt 00:00:19]} gxf4 {[%clk 00:23:12]} {[%emt
00:00:11]} 42. gxf4 {[%clk 00:49:25]} {[%emt 00:00:07]} Kg6 {[%clk 00:23:20]}
{[%emt 00:00:19]} 43. b5 {[%clk 00:49:00]} {[%emt 00:00:58]} Kh5 {[%clk
00:23:40]} {[%emt 00:00:10]} 44. a5 {[%clk 00:48:57]} {[%emt 00:00:34]} Kh4
{[%clk 00:23:55]} {[%emt 00:00:14]} 45. b6 {[%clk 00:48:26]} {[%emt 00:01:01]}
Na6 {[%clk 00:23:45]} {[%emt 00:00:40]} 46. Nxd5 {[%clk 00:48:22]} {[%emt
00:00:34]} Kxh3 {[%clk 00:23:29]} {[%emt 00:00:47]} 47. Nc7 {[%clk 00:48:23]}
{[%emt 00:00:28]} 1-0

[Event "32nd NATO Chess Championship"]
[Site "Tartu, Estonia"]
[Date "2022.06.28"]
[Round "2.36"]
[White "Rosseel, Kimball"]
[Black "Chapman, Chas"]
[Result "1-0"]
[TimeControl "90 min + 30 sec increment from move one"]
[WhiteFideId "233331"]
[BlackFideId "443468"]
[WhiteElo "1831"]
[BlackElo "1646"]

1. d4 {[%clk 01:30:56]} {[%emt 00:00:03]} Nf6 {[%clk 01:30:29]} {[%emt
00:00:32]} 2. Nf3 {[%clk 01:31:19]} {[%emt 00:00:07]} d5 {[%clk 01:30:17]}
{[%emt 00:00:42]} 3. e3 {[%clk 01:31:41]} {[%emt 00:00:07]} e6 {[%clk
01:29:16]} {[%emt 00:01:32]} 4. Bd3 {[%clk 01:32:04]} {[%emt 00:00:07]} Be7
{[%clk 01:28:27]} {[%emt 00:01:18]} 5. O-O {[%clk 01:32:15]} {[%emt 00:00:20]}
O-O {[%clk 01:27:50]} {[%emt 00:01:06]} 6. b3 {[%clk 01:31:42]} {[%emt
00:01:05]} b6 {[%clk 01:25:56]} {[%emt 00:02:23]} 7. Bb2 {[%clk 01:30:57]}
{[%emt 00:01:14]} Bb7 {[%clk 01:23:46]} {[%emt 00:02:40]} 8. c4 {[%clk
01:29:55]} {[%emt 00:01:33]} dxc4 {[%clk 01:22:37]} {[%emt 00:01:39]} 9. bxc4
{[%clk 01:29:41]} {[%emt 00:00:44]} c5 {[%clk 01:16:43]} {[%emt 00:06:24]} 10.
Nbd2 {[%clk 01:27:56]} {[%emt 00:02:15]} cxd4 {[%clk 01:11:31]} {[%emt
00:05:42]} 11. exd4 {[%clk 01:27:24]} {[%emt 00:01:03]} Nc6 {[%clk 01:05:44]}
{[%emt 00:06:15]} 12. Rc1 {[%clk 01:25:43]} {[%emt 00:02:11]} Rc8 {[%clk
01:02:49]} {[%emt 00:03:26]} 13. Qe2 {[%clk 01:23:22]} {[%emt 00:02:50]} Nb4
{[%clk 00:57:17]} {[%emt 00:06:02]} 14. Bb1 {[%clk 01:21:37]} {[%emt 00:02:15]}
Qd6 {[%clk 00:45:39]} {[%emt 00:12:08]} 15. Ne5 {[%clk 01:15:32]} {[%emt
00:06:35]} Nc6 {[%clk 00:34:58]} {[%emt 00:11:12]} 16. Ndf3 {[%clk 01:12:53]}
{[%emt 00:03:08]} Rc7 {[%clk 00:28:57]} {[%emt 00:06:32]} 17. Rfd1 {[%clk
01:09:39]} {[%emt 00:03:43]} Qd8 {[%clk 00:26:20]} {[%emt 00:03:07]} 18. a3
{[%clk 01:06:09]} {[%emt 00:04:00]} Qc8 {[%clk 00:25:32]} {[%emt 00:01:18]} 19.
Nxc6 {[%clk 00:44:02]} {[%emt 00:22:38]} Bxc6 {[%clk 00:24:53]} {[%emt
00:01:08]} 20. Ne5 {[%clk 00:43:24]} {[%emt 00:01:08]} Bb7 {[%clk 00:19:35]}
{[%emt 00:05:48]} 21. Rc3 {[%clk 00:37:55]} {[%emt 00:05:59]} Qa8 {[%clk
00:17:05]} {[%emt 00:03:01]} 22. f3 {[%clk 00:35:49]} {[%emt 00:02:36]} Nd7
{[%clk 00:13:54]} {[%emt 00:03:41]} 23. Qc2 {[%clk 00:31:26]} {[%emt 00:04:52]}
g6 {[%clk 00:13:31]} {[%emt 00:00:53]} 24. Qe2 {[%clk 00:25:49]} {[%emt
00:06:07]} Bf6 {[%clk 00:11:35]} {[%emt 00:02:27]} 25. f4 {[%clk 00:23:53]}
{[%emt 00:02:26]} Nxe5 {[%clk 00:11:07]} {[%emt 00:00:57]} 26. fxe5 {[%clk
00:23:25]} {[%emt 00:00:58]} Bg7 {[%clk 00:10:06]} {[%emt 00:01:31]} 27. Bc1
{[%clk 00:20:49]} {[%emt 00:03:05]} f6 {[%clk 00:08:01]} {[%emt 00:02:35]} 28.
exf6 {[%clk 00:20:27]} {[%emt 00:00:53]} Bxf6 {[%clk 00:07:19]} {[%emt
00:01:11]} 29. Qxe6+ {[%clk 00:20:01]} {[%emt 00:00:56]} Kg7 {[%clk 00:06:01]}
{[%emt 00:01:48]} 30. Qh3 {[%clk 00:17:49]} {[%emt 00:02:42]} Be4 {[%clk
00:03:14]} {[%emt 00:03:17]} 31. Bh6+ {[%clk 00:18:00]} {[%emt 00:00:19]} Kg8
{[%clk 00:02:14]} {[%emt 00:01:30]} 32. Qe6+ {[%clk 00:15:49]} {[%emt
00:02:40]} Rff7 {[%clk 00:01:30]} {[%emt 00:01:15]} 33. Bxe4 {[%clk 00:15:25]}
{[%emt 00:00:54]} Rce7 {[%clk 00:01:10]} {[%emt 00:00:50]} 34. Qxf7+ {[%clk
00:15:05]} {[%emt 00:00:50]} 1-0

[Event "32nd NATO Chess Championship"]
[Site "Tartu, Estonia"]
[Date "2022.06.28"]
[Round "2.42"]
[White "Boudry, Rik"]
[Black "Van Den Heuvel, Tonnie"]
[Result "0-1"]
[TimeControl "90 min + 30 sec increment from move one"]
[WhiteFideId "237540"]
[BlackFideId "1012924"]
[WhiteElo "1468"]
[BlackElo "1799"]

1. e4 {[%emt 00:00:01]} b6 {[%emt 00:00:11]} 2. d4 {[%clk 01:30:34]} {[%emt
00:00:13]} Bb7 {[%clk 01:30:28]} {[%emt 00:00:32]} 3. Nc3 {[%clk 01:30:56]}
{[%emt 00:00:08]} e6 {[%clk 01:30:51]} {[%emt 00:00:07]} 4. Bd3 {[%clk
01:30:41]} {[%emt 00:00:45]} Bb4 {[%clk 01:28:26]} {[%emt 00:02:55]} 5. Nge2
{[%clk 01:29:41]} {[%emt 00:01:30]} Nf6 {[%clk 01:24:50]} {[%emt 00:04:05]} 6.
O-O {[%clk 01:29:18]} {[%emt 00:00:51]} c5 {[%clk 01:23:11]} {[%emt 00:02:10]}
7. Bg5 {[%clk 01:26:16]} {[%emt 00:03:33]} Qc7 {[%clk 01:23:20]} {[%emt
00:00:21]} 8. a3 {[%clk 01:20:57]} {[%emt 00:05:50]} Bxc3 {[%clk 01:23:32]}
{[%emt 00:00:17]} 9. Nxc3 {[%clk 01:19:45]} {[%emt 00:01:42]} cxd4 {[%clk
01:11:56]} {[%emt 00:12:05]} 10. Bxf6 {[%clk 01:16:10]} {[%emt 00:04:05]} gxf6
{[%clk 01:11:38]} {[%emt 00:00:48]} 11. Nb5 {[%clk 01:15:20]} {[%emt 00:01:21]}
Qf4 {[%clk 01:01:11]} {[%emt 00:10:57]} 12. g3 {[%clk 01:13:54]} {[%emt
00:01:57]} Rg8 {[%clk 00:58:25]} {[%emt 00:03:14]} 13. Qe2 {[%clk 01:12:57]}
{[%emt 00:01:28]} Nc6 {[%clk 00:52:34]} {[%emt 00:06:20]} 14. Kh1 {[%clk
01:11:11]} {[%emt 00:02:15]} Qb8 {[%clk 00:51:46]} {[%emt 00:01:19]} 15. c3
{[%clk 01:06:51]} {[%emt 00:04:51]} dxc3 {[%clk 00:50:35]} {[%emt 00:01:41]} 16.
Nxc3 {[%clk 01:07:06]} {[%emt 00:00:14]} Ne5 {[%clk 00:45:29]} {[%emt
00:05:37]} 17. Bc2 {[%clk 01:06:22]} {[%emt 00:01:13]} a6 {[%clk 00:32:07]}
{[%emt 00:13:53]} 18. Rad1 {[%clk 01:04:42]} {[%emt 00:02:10]} Qc8 {[%clk
00:31:20]} {[%emt 00:01:16]} 19. Rd4 {[%clk 01:02:44]} {[%emt 00:02:28]} Bc6
{[%clk 00:27:37]} {[%emt 00:04:14]} 20. Rfd1 {[%clk 01:01:14]} {[%emt
00:02:00]} Qb7 {[%clk 00:27:00]} {[%emt 00:01:07]} 21. Na4 {[%clk 00:56:37]}
{[%emt 00:05:06]} Qa7 {[%clk 00:25:25]} {[%emt 00:02:06]} 22. Qd2 {[%clk
00:54:32]} {[%emt 00:02:35]} Nf3 {[%clk 00:24:43]} {[%emt 00:01:11]} 23. Rxd7
{[%clk 00:48:11]} {[%emt 00:06:51]} Nxd2 {[%clk 00:20:50]} {[%emt 00:04:24]} 24.
Rxa7 {[%emt 00:01:04]} Rxa7 {[%emt 00:00:06]} 25. Rxd2 {[%clk 00:47:07]} {[%emt
00:00:24]} b5 {[%clk 00:20:35]} {[%emt 00:00:45]} 26. Nc5 {[%clk 00:47:15]}
{[%emt 00:00:21]} Ke7 {[%clk 00:19:05]} {[%emt 00:02:01]} 27. Nb3 {[%clk
00:46:44]} {[%emt 00:01:01]} Rd8 {[%clk 00:18:03]} {[%emt 00:01:31]} 28. Nd4
{[%clk 00:46:10]} {[%emt 00:01:05]} Ba8 {[%clk 00:17:54]} {[%emt 00:00:38]} 29.
Kg2 {[%clk 00:46:15]} {[%emt 00:00:25]} Rad7 {[%clk 00:17:41]} {[%emt
00:00:43]} 0-1

[Event "32nd NATO Chess Championship"]
[Site "Tartu, Estonia"]
[Date "2022.06.28"]
[Round "2.44"]
[White "Ivsek, Cveto"]
[Black "Sui, Andres"]
[Result "0-1"]
[TimeControl "90 min + 30 sec increment from move one"]
[WhiteFideId "14608405"]
[BlackFideId "4507029"]
[WhiteElo "1766"]
[BlackElo "1288"]

1. d4 {[%clk 01:30:57]} {[%emt 00:00:02]} d5 {[%clk 01:30:44]} {[%emt
00:00:17]} 2. Bf4 {[%clk 01:30:39]} {[%emt 00:00:47]} e6 {[%clk 01:30:43]}
{[%emt 00:00:31]} 3. e3 {[%clk 01:29:45]} {[%emt 00:01:25]} Bd6 {[%clk
01:30:10]} {[%emt 00:01:03]} 4. Bxd6 {[%clk 01:26:51]} {[%emt 00:03:25]} Qxd6
{[%clk 01:29:46]} {[%emt 00:00:54]} 5. c3 {[%clk 01:25:24]} {[%emt 00:01:57]}
Nf6 {[%clk 01:29:10]} {[%emt 00:01:06]} 6. Bd3 {[%clk 01:23:32]} {[%emt
00:02:20]} O-O {[%clk 01:24:55]} {[%emt 00:04:45]} 7. Nf3 {[%clk 01:23:21]}
{[%emt 00:00:42]} c5 {[%clk 01:24:35]} {[%emt 00:00:51]} 8. Nbd2 {[%clk
01:19:56]} {[%emt 00:03:54]} c4 {[%clk 01:24:21]} {[%emt 00:00:45]} 9. Bb1
{[%clk 01:19:53]} {[%emt 00:00:33]} b5 {[%clk 01:23:46]} {[%emt 00:01:05]} 10.
a3 {[%clk 01:17:23]} {[%emt 00:03:00]} Nc6 {[%clk 01:21:32]} {[%emt 00:02:43]}
11. O-O {[%clk 01:16:06]} {[%emt 00:01:48]} Re8 {[%clk 01:19:46]} {[%emt
00:02:15]} 12. e4 {[%clk 01:09:16]} {[%emt 00:07:21]} e5 {[%clk 01:19:29]}
{[%emt 00:00:47]} 13. exd5 {[%clk 01:01:27]} {[%emt 00:08:19]} Qxd5 {[%clk
01:17:56]} {[%emt 00:02:02]} 14. dxe5 {[%clk 00:55:48]} {[%emt 00:06:11]} Nxe5
{[%clk 01:17:49]} {[%emt 00:00:38]} 15. Nxe5 {[%clk 00:55:06]} {[%emt
00:01:12]} Rxe5 {[%clk 01:17:09]} {[%emt 00:01:10]} 16. Nf3 {[%clk 00:54:08]}
{[%emt 00:01:27]} Bb7 {[%clk 01:17:00]} {[%emt 00:00:39]} 17. Qxd5 {[%clk
00:51:03]} {[%emt 00:03:35]} Rxd5 {[%clk 01:15:39]} {[%emt 00:01:51]} 18. Nd4
{[%clk 00:50:21]} {[%emt 00:01:13]} Re8 {[%clk 01:14:32]} {[%emt 00:01:37]} 19.
Bc2 {[%clk 00:48:28]} {[%emt 00:02:23]} Rde5 {[%clk 01:14:18]} {[%emt
00:00:44]} 20. a4 {[%clk 00:43:45]} {[%emt 00:05:13]} a6 {[%clk 01:13:06]}
{[%emt 00:01:43]} 21. axb5 {[%clk 00:42:48]} {[%emt 00:01:27]} axb5 {[%clk
01:13:34]} {[%emt 00:00:01]} 22. Ra5 {[%clk 00:39:33]} {[%emt 00:03:45]} Be4
{[%clk 01:13:34]} {[%emt 00:00:31]} 23. Bxe4 {[%clk 00:32:39]} {[%emt
00:07:24]} Nxe4 {[%clk 01:13:42]} {[%emt 00:00:21]} 24. Rxb5 {[%clk 00:29:09]}
{[%emt 00:04:01]} Rxb5 {[%clk 01:13:51]} {[%emt 00:00:21]} 25. Nxb5 {[%clk
00:29:20]} {[%emt 00:00:19]} Rb8 {[%clk 01:14:11]} {[%emt 00:00:09]} 26. Rd1
{[%clk 00:25:01]} {[%emt 00:04:49]} g6 {[%clk 01:13:14]} {[%emt 00:01:29]} 27.
f3 {[%clk 00:19:08]} {[%emt 00:06:22]} Nc5 {[%clk 01:11:53]} {[%emt 00:01:51]}
28. Na3 {[%clk 00:16:31]} {[%emt 00:03:07]} Rxb2 {[%clk 01:11:48]} {[%emt
00:00:35]} 29. Nxc4 {[%clk 00:16:45]} {[%emt 00:00:16]} Rc2 {[%clk 01:11:47]}
{[%emt 00:00:31]} 30. Rd5 {[%clk 00:16:29]} {[%emt 00:00:46]} Na4 {[%clk
01:12:07]} {[%emt 00:00:11]} 31. Ne5 {[%clk 00:16:02]} {[%emt 00:00:57]} Nxc3
{[%clk 01:12:04]} {[%emt 00:00:33]} 32. Rd8+ {[%clk 00:15:37]} {[%emt
00:00:55]} Kg7 {[%clk 01:12:32]} {[%emt 00:00:02]} 33. Rd7 {[%clk 00:10:50]}
{[%emt 00:05:16]} Rc1+ {[%clk 01:12:55]} {[%emt 00:00:09]} 34. Kf2 {[%clk
00:10:58]} {[%emt 00:00:19]} Rc2+ {[%clk 01:13:08]} {[%emt 00:00:19]} 35. Kg3
{[%clk 00:10:35]} {[%emt 00:00:49]} Ne2+ {[%clk 01:13:37]} {[%emt 00:00:06]} 36.
Kh4 {[%clk 00:09:51]} {[%emt 00:01:13]} Kf6 {[%clk 01:14:05]} {[%emt 00:00:01]}
37. Ng4+ {[%clk 00:07:06]} {[%emt 00:03:16]} Ke6 {[%clk 01:14:35]} 38. Rd8
{[%clk 00:07:14]} {[%emt 00:00:23]} Nf4 {[%clk 01:14:51]} {[%emt 00:00:14]} 39.
Re8+ {[%clk 00:06:33]} {[%emt 00:01:12]} Kd6 {[%clk 01:15:07]} {[%emt
00:00:13]} 40. Nf6 {[%clk 00:04:51]} {[%emt 00:02:12]} Rxg2 {[%clk 01:15:33]}
{[%emt 00:00:04]} 41. Ne4+ {[%clk 00:04:35]} {[%emt 00:00:46]} Kd5 {[%clk
01:15:40]} {[%emt 00:00:22]} 42. Nf6+ {[%clk 00:04:04]} {[%emt 00:01:02]} Kd6
{[%clk 01:16:10]} 43. Re4 {[%clk 00:03:58]} {[%emt 00:00:33]} g5# {[%clk
01:16:27]} {[%emt 00:00:14]} 0-1